[Event "Fagernes Chess GM-Swiss 2024"]
[Site "Fagernes"]
[Date "2024.03.26"]
[Round "3.3"]
[White "Gorshtein, Ido"]
[Black "Kvaloy, Aksel Bu"]
[Result "1-0"]
[ECO "A20"]
[WhiteElo "2539"]
[BlackElo "2454"]
[Annotator "TA"]
[PlyCount "79"]
[EventDate "2024.03.25"]
[EventType "swiss"]
[EventCountry "NOR"]
[SourceTitle "playchess.com"]
[Source "ChessBase"]
[SourceQuality "1"]
[TimeControl "40/6000+30:2400+30"]

{[%evp 9,79,7,28,10,27,-18,-10,-6,26,24,32,29,25,18,20,15,0,0,22,0,129,130,169,69,72,61,67,52,67,60,100,100,141,139,150,145,130,114,164,143,229,220,225,237,220,236,205,168,296,293,303,289,439,437,445,438,417,431,429,397,406,395,499,475,29942,29962,29955,5610,29970,29970,29973,12329]} 1. c4 {[%emt 0:00:02]} e5 {[%emt 0:01:16][%cal Be7e5,Be5e4][%mdl 32]} 2. g3 {[%emt 0:00:04]} Nf6 {[%emt 0:00:08]} 3. Bg2 {[%emt 0:00:04]} c6 {[%emt 0:00:22]} 4. Nf3 {[%emt 0:00:28]} e4 {[%emt 0:00:14]} 5. Nd4 {[%emt 0:00:03]} Qb6 {[%emt 0:00:18]} 6. e3 {[%emt 0:01:26]} d5 {[%emt 0:00:42]} 7. d3 {[%emt 0:01:42]} Bb4+ {[%emt 0:01:07]} 8. Bd2 {[%emt 0:06:55] The position is equal.} O-O {[%emt 0:20:04]} 9. O-O {[%emt 0:13:21]} (9. cxd5 {keeps more tension.} exd3 10. Bxb4 Qxb4+ 11. Qd2) 9... Bg4 {[%emt 0:03:54][%cal Bc8g4,Bg4e2,Be2d3][%mdl 32]} 10. Qb3 {[%emt 0:09:05]} Bxd2 {[%emt 0:00:49]} 11. Nxd2 {[%emt 0:00:17][%cal Rd3e4]} c5 {[%emt 0:01:37]} 12. Qxb6 {[%emt 0:05:15]} axb6 {[%emt 0:00:03]} 13. Nb5 {[%emt 0:00:09] aiming for Nc7.} Be2 {[%emt 0:04:53]} 14. dxe4 {[%emt 0:16:55] Black must now prevent Rfe1.} Nxe4 {[%emt 0:02:52]} (14... Bxf1 $11 {keeps the balance.} 15. Kxf1 dxe4) 15. Rfe1 $36 {[%emt 0:03:36][%mdl 2048] White has strong initiative.} (15. Nxe4 $6 Bxf1 16. Kxf1 dxe4 $11) (15. Bxe4 $6 dxe4 16. Rfc1 Bd3 $11) 15... Bd3 {[%emt 0:03:23]} 16. Nxe4 {[%emt 0:03:11]} (16. Nc7 $18 Ra7 17. cxd5) 16... dxe4 $14 {[%emt 0:00:40]} 17. Nc7 {[%emt 0:02:46]} Ra5 {[%emt 0:05:44][%cal Ob8c6]} 18. Bf1 {[%emt 0:00:31]} Bxf1 {[%emt 0:05:52]} 19. Kxf1 {[%emt 0:00:11]} Nc6 {[%emt 0:14:24] Black is now going downhill.} 20. Red1 {[%emt 0:02:36]} Ne5 {[%emt 0:09:15]} 21. b3 {[%emt 0:00:32]} Nd3 {[%emt 0:00:57] [#]} 22. a4 $1 {[%emt 0:00:19]} f5 {[%emt 0:02:12]} 23. Nd5 {[%emt 0:00:29]} Ra6 {[%emt 0:05:29]} (23... g5 $16 {keeps fighting.} 24. Ke2 (24. Nxb6 f4 $16) 24... Raa8) 24. Ke2 {[%emt 0:04:26]} g5 {[%emt 0:07:28] [#]} (24... Raa8 $16 25. Nxb6 Ra6) 25. Nc7 $1 $18 {[%emt 0:03:06]} Ra5 {[%emt 0:03:17]} 26. Ne6 {[%emt 0:00:54]} Rf6 {[%emt 0:01:49]} 27. Nxg5 {[%emt 0:00:52]} Ra8 {[%emt 0:01:51]} 28. Nh3 {[%emt 0:02:27]} Kf7 {[%emt 0:04:50]} (28... Rd8 $142 29. Nf4 Rfd6) 29. Nf4 {[%emt 0:00:48]} Nxf4+ {[%emt 0:00:06]} 30. exf4 {[%emt 0:00:45][%mdl 4096] Endgame. KRR-KRR} Re6 {[%emt 0:03:01]} (30... Ke8 {is a better defense.} 31. Rd5 Rc8) 31. Rd7+ {[%emt 0:01:29]} Re7 {[%emt 0:00:06]} 32. Rd5 {[%emt 0:01:35]} Kf6 {[%emt 0:00:17]} 33. Rad1 {[%emt 0:00:07]} h5 {[%emt 0:02:00][%cal Bh7h5,Bh5h4][%mdl 32]} 34. Rd8 {[%emt 0:01:44]} Rxd8 {[%emt 0:01:44]} 35. Rxd8 {[%emt 0:00:22] KR-KR} h4 {[%emt 0:00:07]} 36. Rd6+ {[%emt 0:00:07]} ({Don't play} 36. gxh4 Rh7 37. Rd6+ Ke7 38. Rxb6 Rxh4) 36... Re6 {[%emt 0:00:11]} (36... Kf7 $18 37. Rxb6 (37. gxh4 b5 $18) 37... h3) 37. Rxe6+ {[%emt 0:01:27]} Kxe6 {[%emt 0:00:01]} 38. f3 {[%emt 0:00:51]} ({Weaker is} 38. gxh4 Kf7 $11) (38. Ke3 $142 h3 39. g4 Kf6 40. f3 exf3 41. Kxf3 Ke6 42. Kg3 fxg4 43. Kxg4) 38... exf3+ {[%emt 0:00:31]} 39. Kxf3 {[%emt 0:00:03]} Kf6 {[%emt 0:00:07]} 40. g4 {[%emt 0:00:11] Weighted Error Value: White=0.13 (very precise) /Black=0.60.  Mistake:       	White=1     	Black=6      Inaccurate:     	White=1     	Black=3      OK:         	White=12    	Black=13     Best:        	White=4     	Black=1} ({Inferior is} 40. gxh4 Kg6 $11) 1-0

[Event "Fagernes Chess GM-Swiss 2024"]
[Site "Fagernes"]
[Date "2024.03.26"]
[Round "3.4"]
[White "Kulaots, Kaido"]
[Black "Willow, Jonah B"]
[Result "1/2-1/2"]
[ECO "B40"]
[WhiteElo "2534"]
[BlackElo "2446"]
[Annotator "TA"]
[PlyCount "82"]
[EventDate "2024.03.25"]
[EventType "swiss"]
[EventCountry "NOR"]
[SourceTitle "playchess.com"]
[Source "ChessBase"]
[SourceQuality "1"]
[TimeControl "40/6000+30:2400+30"]

{[%evp 9,82,0,0,0,0,0,1,0,0,0,4,3,0,-5,27,10,52,30,44,44,62,70,80,82,77,72,75,77,88,75,90,80,98,58,69,63,69,77,115,72,59,58,63,66,63,37,37,34,29,11,28,8,41,18,27,27,32,35,29,0,0,0,0,0,0,0,0,0,0,0,0,0,0,0,0]} 1. e4 {[%emt 0:00:10]} c5 {[%emt 0:03:46]} 2. Nf3 {[%emt 0:00:12]} e6 {[%emt 0:00:19]} 3. c3 {[%emt 0:00:17]} d5 {[%emt 0:00:25][%cal Bd7d5,Bd5d4][%mdl 32]} 4. e5 {[%emt 0:00:05]} d4 {[%emt 0:07:47]} 5. d3 {[%emt 0:00:59]} Nc6 {[%emt 0:15:39]} 6. g3 {[%emt 0:00:54]} Nge7 {[%emt 0:05:57]} 7. Bg2 {[%emt 0:00:25]} Ng6 {[%emt 0:07:43]} 8. Qe2 {[%emt 0:00:49]} dxc3 {[%emt 0:07:58]} 9. bxc3 {[%emt 0:04:38]} Qc7 {[%emt 0:01:12][%cal Oc8d7]} 10. O-O {[%emt 0:14:11]} Ncxe5 {[%emt 0:04:15]} 11. Nxe5 {[%emt 0:02:15]} Qxe5 {[%emt 0:06:08]} 12. Be3 {[%emt 0:00:27]} Be7 {[%emt 0:02:14]} 13. h4 {[%emt 0:05:15][%cal Bh2h4,Bh4h5][%mdl 32]} O-O {[%emt 0:10:11]} 14. d4 {[%emt 0:02:51]} cxd4 {[%emt 0:04:24]} 15. cxd4 {[%emt 0:00:07]} Qa5 {[%emt 0:00:37][%cal Ob7b6]} 16. h5 {[%emt 0:04:18]} Nh8 {[%emt 0:00:03][%cal Ob7b6]} 17. Nd2 {[%emt 0:02:44]} Bd7 {[%emt 0:05:11][%cal Bc8d7,Bd7b5,Bb5d3][%mdl 32]} 18. Bxb7 {[%emt 0:20:57]} Bb5 {[%emt 0:01:29] Verhindert Nc4.} 19. Qf3 {[%emt 0:00:35]} Rab8 {[%emt 0:04:33]} 20. Rfb1 {[%emt 0:06:33]} Bd3 {[%emt 0:00:46]} 21. Rd1 {[%emt 0:14:18]} Qb5 {[%emt 0:05:42][%cal Od3e2] [#] Droht stark ...Be2!} 22. Bc6 $1 {[%emt 0:00:34]} Qa6 {[%emt 0:02:23]} 23. Re1 {[%emt 0:02:42] Lässt Be2 nicht zu} Rb2 {[%emt 0:02:11]} 24. Bf4 {[%emt 0:08:37]} Bb4 {[%emt 0:04:08]} 25. Bb7 {[%emt 0:02:33]} Qb6 {[%emt 0:04:30]} 26. Qxd3 {[%emt 0:00:56]} Qxb7 {[%emt 0:00:05]} 27. Rec1 {[%emt 0:04:16]} Bxd2 {[%emt 0:00:33]} 28. Bxd2 {[%emt 0:00:05]} f6 {[%emt 0:01:27]} 29. h6 {[%emt 0:06:43]} Nf7 {[%emt 0:01:07]} 30. hxg7 {[%emt 0:00:15]} Kxg7 {[%emt 0:00:02]} 31. Bf4 {[%emt 0:00:28] Mit der Idee Rc7.} e5 {[%emt 0:00:47]} 32. dxe5 {[%emt 0:01:15]} Nxe5 {[%emt 0:01:02]} 33. Bxe5 {[%emt 0:00:30]} fxe5 {[%emt 0:00:00]} 34. Qd6 {[%emt 0:02:52] [#] Droht Rc7+ und aus. Sehr scharf!} Kg8 {[%emt 0:01:29] Die Stellung ist ausgeglichen.} 35. Qe6+ {[%emt 0:02:24]} (35. Qxe5 $2 {ist das falsche Schlagen.} Rbxf2 (35... Rfxf2 36. Qg5+ Kf7 37. Qh5+ Kf8 38. Qc5+ Kg8 39. Qxf2 $11) 36. Qe6+ Kh8 $19) 35... Qf7 {[%emt 0:00:09]} 36. Qxf7+ {[%emt 0:00:15]} (36. Qxe5 $2 {ist ein Selbstmatt.} Qxf2+ 37. Kh1 Qh2#) 36... Rxf7 $11 {[%emt 0:00:06] KRR-KRR} 37. Rf1 {[%emt 0:00:10]} e4 {[%emt 0:01:35]} 38. Rae1 {[%emt 0:01:09]} Re7 {[%emt 0:00:16]} 39. a3 {[%emt 0:00:29]} Rb3 {[%emt 0:01:05]} 40. Re3 {[%emt 0:00:33]} Rxe3 {[%emt 0:00:37]} 41. fxe3 {[%emt 0:40:06]} Rc7 {[%emt 0:03:59] Gewichteter Fehlerwert: Weiß=0.10 (sehr präzise) /Schwarz=0.06 (makellos) .  Ungenau:       	Weiß=4     	Schwarz=4     OK:         	Weiß=14    	Schwarz=14    Bester:       	Weiß=1     	Schwarz=3     Stark:        	Weiß=1     	---} 1/2-1/2

[Event "Fagernes Chess GM-Swiss 2024"]
[Site "Fagernes"]
[Date "2024.03.26"]
[Round "3.5"]
[White "Pranav Anand"]
[Black "Elmi, Saad Abobaker"]
[Result "0-1"]
[ECO "C55"]
[WhiteElo "2519"]
[BlackElo "2344"]
[Annotator "TA"]
[PlyCount "144"]
[EventDate "2024.03.25"]
[EventType "swiss"]
[EventCountry "NOR"]
[SourceTitle "playchess.com"]
[Source "ChessBase"]
[SourceQuality "1"]
[TimeControl "40/6000+30:2400+30"]

{[%evp 52,144,0,-25,-16,-23,-37,-47,-47,-45,-27,-41,-37,-37,-47,-39,-37,-35,-10,-12,-20,-24,0,-89,0,0,0,-118,-125,-111,-120,-142,-128,-115,-150,-153,-143,-173,-178,-225,-218,-218,-225,-225,-225,-278,-285,-300,-291,-281,-285,-266,-225,-225,-225,-375,-366,-375,-370,-363,-363,-345,-343,-311,-289,-869,-688,-1130,-1159,-1200,-572,-476,0,-991,-1007,-939,-916,-1333,-1204,-970,-942,-29966,-29972,-29979,-29979,-6107,-6083,-29983,-29983,-29985,-29986,-29986,-29987,-29986,-29987]} 1. e4 {[%emt 0:00:05]} e5 {[%emt 0:06:03]} 2. Nf3 {[%emt 0:00:07]} Nc6 {[%emt 0:00:33]} 3. Bc4 {[%emt 0:00:22]} Nf6 {[%emt 0:00:15]} 4. d3 {[%emt 0:00:06]} Be7 {[%emt 0:00:30]} 5. O-O {[%emt 0:02:30]} O-O {[%emt 0:03:05]} 6. a4 {[%emt 0:02:10]} a5 {[%emt 0:03:31]} 7. Re1 {[%emt 0:01:43]} d6 {[%emt 0:03:09]} 8. h3 {[%emt 0:02:55]} h6 {[%emt 0:06:44]} 9. c3 {[%emt 0:02:38]} Be6 {[%emt 0:13:51]} 10. Bxe6 {[%emt 0:03:51]} fxe6 {[%emt 0:00:12]} 11. Nbd2 {[%emt 0:14:14]} Nh5 {[%emt 0:05:53]} 12. Nf1 {[%emt 0:05:05]} Qd7 {[%emt 0:09:21]} 13. N1h2 {[%emt 0:03:29]} Rf7 {[%emt 0:07:26]} 14. Be3 {[%emt 0:09:13]} Raf8 {[%emt 0:02:45]} 15. Qb3 {[%emt 0:04:50]} b6 {[%emt 0:10:48]} 16. Rad1 {[%emt 0:07:35]} Nf4 {[%emt 0:05:34]} 17. Qb5 {[%emt 0:00:37]} Qe8 {[%emt 0:07:57]} 18. Qc4 {[%emt 0:10:28]} Qd7 {[%emt 0:03:05]} 19. Qb5 {[%emt 0:01:16]} Qe8 {[%emt 0:00:14]} 20. Bxf4 {[%emt 0:00:20]} Rxf4 {[%emt 0:00:18]} 21. d4 {[%emt 0:00:13]} exd4 {[%emt 0:00:36]} 22. cxd4 {[%emt 0:00:07]} Nb4 {[%emt 0:01:18]} 23. Re3 {[%emt 0:08:07]} Qg6 {[%emt 0:01:43]} 24. Qe2 {[%emt 0:03:59]} Bd8 {[%emt 0:02:17]} 25. Nf1 {[%emt 0:02:46]} c6 {[%emt 0:02:51]} 26. N1d2 {[%emt 0:02:48]} Bc7 {[%emt 0:00:12]} 27. Rc1 {[%emt 0:02:19]} d5 {[%emt 0:02:41]} 28. exd5 {[%emt 0:04:12]} (28. g3 {with more complications.} c5 29. exd5 exd5 30. dxc5 bxc5 31. Rxc5 Bb6 32. Ne5) 28... exd5 {[%emt 0:00:13]} 29. Re6 {[%emt 0:01:30]} R4f6 {[%emt 0:00:35]} 30. Rxf6 {[%emt 0:01:25]} Qxf6 {[%emt 0:00:53]} 31. Re1 {[%emt 0:00:59]} c5 {[%emt 0:03:02]} 32. dxc5 {[%emt 0:01:12]} bxc5 {[%emt 0:00:08]} 33. b3 {[%emt 0:00:16]} Bf4 {[%emt 0:01:03]} (33... Qg6 {looks sharper.} 34. Qe7 Qf7 35. Nb1 Nd3) 34. Nf1 {[%emt 0:03:23]} Bd6 {[%emt 0:04:39]} 35. Ne3 {[%emt 0:00:40]} Qg6 {[%emt 0:00:49]} 36. Nh4 {[%emt 0:06:00]} Qg5 {[%emt 0:01:43]} 37. g3 {[%emt 0:01:05]} (37. Ng4 $11 Bc7 38. Qe6+ Kh7 39. Nf3) 37... Re8 {[%emt 0:01:23]} (37... Rxf2 $1 $17 38. Kxf2 (38. Qxf2 $2 Bxg3 39. Qf5 Bxe1+ 40. Nhg2 Qxf5 $19) 38... Bxg3+ 39. Kf1 Qxh4 (39... Bxh4 40. Rd1 $17)) 38. Qb5 $11 {[%emt 0:01:32]} Rf8 {[%emt 0:01:03]} 39. Qe2 {[%emt 0:02:34] [#]} (39. Qd7 $11 {keeps the balance.} Nd3 40. Qe6+ Kh7 41. Qxd6) 39... Rxf2 $1 $17 {[%emt 0:01:00]} 40. Kxf2 {[%emt 0:01:11]} (40. Qxf2 $2 {perishes.} Bxg3 (40... Qxg3+ $2 {too greedy.} 41. Qxg3 Bxg3 42. Rd1 $18) 41. Qf5 Bxe1+ 42. Qxg5 hxg5 $19) 40... Bxg3+ {[%emt 0:00:17]} 41. Kf1 {[%emt 0:06:48]} Bxh4 {[%emt 0:01:47]} 42. Rd1 {[%emt 0:03:53] [#]} Qf4+ $1 {[%emt 0:02:33]} 43. Kg1 {[%emt 0:00:26]} Qe4 {[%emt 0:01:38]} 44. Rd2 {[%emt 0:07:13]} Bg5 {[%emt 0:10:31]} 45. Nxd5 {[%emt 0:00:26]} (45. Nf1 {might work better.} Bxd2 46. Qxe4 dxe4 47. Nxd2) 45... Qxe2 $19 {[%emt 0:00:07]} 46. Rxe2 {[%emt 0:00:02]} Nxd5 {[%emt 0:00:09]} 47. Re5 {[%emt 0:00:02]} Nf6 {[%emt 0:06:38]} 48. Kf1 {[%emt 0:01:43]} Bd2 {[%emt 0:00:27]} ({But not} 48... Nd7 49. Rd5 Nf6 50. Rxc5 $19) 49. Rxc5 {[%emt 0:00:08]} Bb4 {[%emt 0:00:51]} 50. Re5 {[%emt 0:02:24]} Nd7 {[%emt 0:00:54]} 51. Re3 {[%emt 0:00:16]} Nc5 {[%emt 0:00:46]} 52. h4 {[%emt 0:04:45]} g6 {[%emt 0:01:18]} 53. Rf3 {[%emt 0:00:35]} (53. Kg2 {keeps fighting.}) 53... Kg7 $19 {[%emt 0:00:33]} 54. Kg2 {[%emt 0:00:56]} g5 {[%emt 0:02:00]} 55. Kh3 {[%emt 0:04:18]} Kg6 {[%emt 0:00:22]} 56. Re3 {[%emt 0:00:47]} Nd7 {[%emt 0:01:14]} 57. Re6+ {[%emt 0:01:54]} Nf6 {[%emt 0:01:38]} 58. Rb6 $2 {[%emt 0:00:42]} (58. hxg5 hxg5 59. Re5) 58... Kf5 $19 {[%emt 0:01:37]} 59. Rb5+ {[%emt 0:00:30]} Kf4 {[%emt 0:02:12]} 60. Rb6 {[%emt 0:00:15]} Ke5 {[%emt 0:00:47]} (60... Nd5 $142 61. Rxh6 g4+ 62. Kg2 Ne3+ 63. Kh2 g3+ 64. Kh3 g2) 61. Rb5+ {[%emt 0:00:15]} Kf4 {[%emt 0:00:54]} (61... Ke4 $142 62. Rb6 g4+ 63. Kg3 Be1+ 64. Kg2 Bxh4) 62. Rb6 $1 $19 {[%emt 0:00:02]} g4+ {[%emt 0:02:34]} 63. Kg2 {[%emt 0:00:03]} Ke5 {[%emt 0:00:29]} 64. Rb5+ {[%emt 0:01:59]} Nd5 {[%emt 0:00:33]} 65. h5 {[%emt 0:00:04]} Ke4 {[%emt 0:00:21]} 66. Kg3 {[%emt 0:00:32]} Ne3 {[%emt 0:00:37]} 67. Kf2 {[%emt 0:02:04]} Kf4 {[%emt 0:01:21]} 68. Rb6 {[%emt 0:00:22]} g3+ {[%emt 0:00:30]} 69. Kg1 {[%emt 0:00:34]} Nf5 {[%emt 0:00:33]} 70. Kg2 {[%emt 0:02:16]} Nh4+ {[%emt 0:00:32]} 71. Kh3 {[%emt 0:00:05]} g2 {[%emt 0:00:27]} 72. Rf6+ {[%emt 0:00:05]} Ke5 {[%emt 0:00:33]} 0-1

[Event "Fagernes Chess GM-Swiss 2024"]
[Site "Fagernes"]
[Date "2024.03.26"]
[Round "3.6"]
[White "Trost, Edvin"]
[Black "Sasikiran, Krishnan"]
[Result "1/2-1/2"]
[ECO "D10"]
[WhiteElo "2432"]
[BlackElo "2578"]
[Annotator "TA"]
[PlyCount "57"]
[EventDate "2024.03.25"]
[EventType "swiss"]
[EventCountry "NOR"]
[SourceTitle "playchess.com"]
[Source "ChessBase"]
[SourceQuality "1"]
[TimeControl "40/6000+30:2400+30"]

{[%evp 9,57,0,11,5,15,20,35,28,27,13,28,30,55,47,47,38,50,49,80,59,58,56,57,50,97,59,47,52,54,31,36,30,74,51,67,52,56,43,51,25,33,27,26,29,44,0,0,0,61,0]} 1. d4 {[%emt 0:00:04]} d5 {[%emt 0:00:17]} 2. c4 {[%emt 0:00:07]} c6 {[%emt 0:00:08]} 3. cxd5 {[%emt 0:00:38]} cxd5 {[%emt 0:00:19]} 4. Bg5 {[%emt 0:00:06]} f6 {[%emt 0:04:02]} 5. Bd2 {[%emt 0:00:39]} Nc6 {[%emt 0:01:12]} 6. Nc3 {[%emt 0:00:11]} e6 {[%emt 0:06:22]} 7. Nf3 {[%emt 0:02:47]} Nge7 {[%emt 0:04:42]} 8. e4 {[%emt 0:06:11]} dxe4 {[%emt 0:11:40]} 9. Nxe4 {[%emt 0:00:06]} Nd5 {[%emt 0:00:54]} 10. Bc4 {[%emt 0:12:33]} Be7 {[%emt 0:13:38]} 11. O-O {[%emt 0:00:32]} O-O {[%emt 0:00:11]} 12. Re1 {[%emt 0:02:47]} Kh8 {[%emt 0:02:55]} 13. Rc1 {[%emt 0:10:58]} Bd6 {[%emt 0:09:13]} 14. Bb3 {[%emt 0:19:59]} Nce7 {[%emt 0:08:45]} 15. h4 {[%emt 0:10:47]} b6 {[%emt 0:10:33]} 16. h5 {[%emt 0:01:04]} a5 {[%emt 0:03:51]} (16... Bf4 $14) 17. Nxd6 {[%emt 0:03:13]} Qxd6 {[%emt 0:00:08]} 18. Qe2 {[%emt 0:00:03]} Bd7 {[%emt 0:09:09]} 19. Qe4 {[%emt 0:00:37]} Rf7 {[%emt 0:07:54]} 20. Nh4 {[%emt 0:06:33]} Kg8 {[%emt 0:02:12]} 21. Bc2 {[%emt 0:04:30] Weiß steht aktiver.} f5 {[%emt 0:01:42]} 22. Qe2 {[%emt 0:00:51]} h6 {[%emt 0:01:59]} 23. Nf3 {[%emt 0:03:07]} Rf6 {[%emt 0:02:09]} 24. Bd3 {[%emt 0:05:42]} Rd8 {[%emt 0:01:59]} 25. Bb5 {[%emt 0:01:24]} Bxb5 {[%emt 0:02:44]} 26. Qxb5 {[%emt 0:00:17]} Qd7 {[%emt 0:00:28]} 27. Qe2 {[%emt 0:02:53]} Qe8 {[%emt 0:00:58]} 28. Ne5 {[%emt 0:00:24]} Qa4 {[%emt 0:00:18]} ({Günstiger ist} 28... Rf8 $11) 29. Qc4 {[%emt 0:05:09] Gewichteter Fehlerwert: Weiß=0.12 (sehr präzise) /Schwarz=0.13 (sehr präzise) .  Fehler:       	Weiß=1     	Schwarz=2     Ungenau:       	Weiß=3     	Schwarz=2     OK:         	Weiß=7     	Schwarz=9     Bester:       	---       	Schwarz=1} (29. g4 $1 $14) 1/2-1/2

[Event "Fagernes Chess GM-Swiss 2024"]
[Site "Fagernes"]
[Date "2024.03.26"]
[Round "3.7"]
[White "Panda Sambit"]
[Black "Amar, Elham"]
[Result "1-0"]
[ECO "D35"]
[WhiteElo "2377"]
[BlackElo "2567"]
[Annotator "TA"]
[PlyCount "91"]
[EventDate "2024.03.25"]
[EventType "swiss"]
[EventCountry "NOR"]
[SourceTitle "playchess.com"]
[Source "ChessBase"]
[SourceQuality "1"]
[TimeControl "40/6000+30:2400+30"]

{[%evp 12,91,25,28,33,23,20,25,31,30,31,27,22,28,25,26,23,27,34,31,33,28,62,56,77,66,111,106,118,108,114,100,167,114,125,45,152,156,169,140,143,146,138,76,84,94,77,0,0,0,0,0,0,0,476,456,491,490,464,493,456,345,458,411,424,396,520,542,487,509,776,937,945,945,1639,1151,1938,1350,29973,6210,2847,3042]} 1. d4 {[%emt 0:06:48]} Nf6 {[%emt 0:00:16]} 2. c4 {[%emt 0:00:13]} e6 {[%emt 0:00:11]} 3. Nf3 {[%emt 0:00:28]} d5 {[%emt 0:00:08]} 4. Nc3 {[%emt 0:00:04]} Nbd7 {[%emt 0:00:07]} 5. cxd5 {[%emt 0:07:28]} exd5 {[%emt 0:00:12]} 6. Bf4 {[%emt 0:00:03]} Bb4 {[%emt 0:00:18]} 7. e3 {[%emt 0:00:04]} Ne4 {[%emt 0:03:28]} 8. Qc2 {[%emt 0:00:06]} g5 {[%emt 0:00:41]} 9. Be5 {[%emt 0:00:04]} Nxe5 {[%emt 0:00:42] White has an edge.} 10. Nxe5 {[%emt 0:00:04] Hoping for Qa4+.} c6 {[%emt 0:00:38]} 11. Bd3 {[%emt 0:00:19]} f6 {[%emt 0:00:45]} 12. Nf3 {[%emt 0:00:05]} Qe7 {[%emt 0:00:07]} 13. a3 {[%emt 0:00:02]} Bxc3+ {[%emt 0:03:22]} 14. bxc3 {[%emt 0:00:08]} Bf5 {[%emt 0:09:49]} 15. Nd2 {[%emt 0:09:38][%cal Bf3d2,Bd2c4,Bc4a5,Ba5b7,Bb7d6][%mdl 32]} Kf7 {[%emt 0:00:59]} 16. Bxe4 {[%emt 0:17:40]} dxe4 {[%emt 0:02:11]} 17. O-O {[%emt 0:08:30]} Bg6 {[%emt 0:02:20]} 18. c4 {[%emt 0:02:33]} Kg7 {[%emt 0:03:43]} 19. c5 {[%emt 0:17:39]} h5 {[%emt 0:00:13]} 20. Nc4 {[%emt 0:01:51]} h4 {[%emt 0:00:35]} 21. Rfb1 {[%emt 0:02:56]} Rad8 {[%emt 0:05:20]} (21... Rhb8 $16) 22. Rb4 {[%emt 0:01:11]} (22. Rb2 $18) 22... Rd7 {[%emt 0:04:08]} 23. Rab1 {[%emt 0:00:56]} (23. h3 $16) 23... Rc8 {[%emt 0:01:31]} ({Black should play} 23... h3 $14) 24. Qb2 $16 {[%emt 0:03:14]} Rcc7 {[%emt 0:00:34]} 25. Na5 {[%emt 0:08:35]} Qe6 {[%emt 0:27:56]} 26. Nxb7 {[%emt 0:06:21]} h3 {[%emt 0:01:40] [#]} 27. Qe2 {[%emt 0:01:09] Repels Qg4} (27. g3 $142 $1) 27... hxg2 {[%emt 0:07:55]} 28. Nd6 {[%emt 0:00:23]} (28. Kxg2 Rc8 29. Rg1 Rh8 $17) 28... Kh6 {[%emt 0:08:06]} 29. Kxg2 {[%emt 0:03:56] White is more active.} ({White should try} 29. Qc4 $16 Qh3 30. Qg8) 29... Bh5 $11 {[%emt 0:09:30]} 30. Qc4 {[%emt 0:00:11]} Bf3+ {[%emt 0:00:23]} 31. Kf1 $1 {[%emt 0:00:04]} Qh3+ {[%emt 0:01:53]} 32. Ke1 {[%emt 0:00:01] Black must now prevent Ne8.} Kh5 $2 {[%emt 0:01:32][%mdl 8192]} (32... Qxh2 $11 {and Black has nothing to worry.} 33. Rb8 Rh7) 33. Ne8 $18 {[%emt 0:06:21][%csl LRc7,LRf6]} Rf7 {[%emt 0:05:11]} 34. Nxc7 {[%emt 0:00:15]} Rxc7 {[%emt 0:00:09]} 35. Rb8 {[%emt 0:01:50]} Rh7 {[%emt 0:01:05][%cal Bc7h7,Bh7h6,Bh6h2][%mdl 32] Dodges Rh8} 36. R1b7 {[%emt 0:05:53]} Rh6 {[%emt 0:00:04]} 37. Qf7+ {[%emt 0:00:10]} (37. Rxa7 Qxh2 38. Rf8 Kg4 $11) (37. Kd2 Qg2 38. Qc1 (38. Rxa7 Qxh2 39. Rd8 Qxf2+ 40. Kc3 Qxe3+ 41. Kb4 f5 $19) 38... Qxf2+ 39. Kc3 Qxh2 $14) 37... Kg4 {[%emt 0:00:08]} 38. Qc7 {[%emt 0:00:26]} (38. Rxa7 Qxh2 39. Rb2 Qg1+ 40. Kd2 Qxf2+ 41. Kc3 Qxe3+ 42. Kb4 Qe1+ (42... Qxd4+ $2 43. Kb3 $19) 43. Kb3 Qa1 $19) 38... Qxh2 {[%emt 0:00:14]} 39. Qxh2 {[%emt 0:00:06]} (39. Qxc6 $2 f5 $19 (39... Qg1+ $2 40. Kd2 $19) (39... Qg1+ $2 40. Kd2 $19)) 39... Rxh2 {[%emt 0:00:02][%mdl 4096] Endgame. KRR-KRB} 40. Rb1 {[%emt 0:00:40]} (40. Rxa7 f5 41. Rf8 Rh1+ 42. Kd2 Rf1 $18) 40... f5 {[%emt 0:07:33] [#]} (40... Kf5 $142 41. d5 cxd5) 41. d5 $1 {[%emt 0:09:03]} cxd5 {[%emt 0:00:06]} (41... Rh7 42. d6) 42. c6 {[%emt 0:00:04] And now c7 would win.} Rh7 {[%emt 0:00:27]} 43. Rc1 {[%emt 0:05:13] aiming for c7.} d4 {[%emt 0:00:24]} 44. c7 {[%emt 0:04:03]} dxe3 {[%emt 0:02:59]} 45. fxe3 {[%emt 0:00:08]} (45. c8=R $2 Rh1#) 45... f4 {[%emt 0:01:32]} 46. c8=Q+ {[%emt 0:00:14] Weighted Error Value: White=0.14 (very precise) /Black=0.46.  Loses game:     	---       	Black=1      Mistake:       	White=4     	Black=3      Inaccurate:     	---       	Black=3      OK:         	White=18    	Black=13     Best:        	White=2     	Black=2      Strong:       	White=1     	---        Brilliant:      	White=1     	---} (46. c8=B+ Kg3 47. Rc3 (47. exf4 $2 e3 $19) 47... Rh1+ 48. Kd2 Rh2+ 49. Kc1 Rh1+ 50. Kb2 Rh2+ 51. Kb3 (51. Rc2 $2 Rxc2+ 52. Kxc2 fxe3 $19) 51... Bd1+ 52. Kc4 f3 $11) 1-0